bitfinex/quotes_ETHUSD_20240810
["timestamp","ask_amount","ask_price","bid_price","bid_amount"]
[1723313120299,1.91173,2615.5,2614.8,2.2923]
[1723313120652,5.60143,2615.9,2614.8,2.2923]
[1723313120856,1.91174,2615.5,2614.8,4.20449]
[1723313121161,1.91147,2615.8,2614.8,4.20449]
[1723313121363,1.91173,2615.5,2614.8,2.712749]
[1723313121670,1.91182,2615.3,2614.8,2.2923]
[1723313121848,1.9121,2615.0,2614.8,2.2923]
[1723313122050,0.19121,2614.9,2614.8,2.2923]
[1723313122245,1.9121,2615.0,2614.8,2.2923]
[1723313122598,1.91211,2614.9,2614.8,2.2923]
[1723313123200,1.91187,2615.3,2614.8,2.2923]
[1723313123399,1.92750956,2616.4,2613.7,0.1]
[1723313123400,3.30706301,2616.7,2615.3,2.2923]
[1723313123557,8.96933708,2617.5,2615.9,1.91138]
[1723313123558,1.91051,2617.1,2615.9,1.91138]
[1723313123891,1.91052,2617.1,2616.3,2.2923]
[1723313124062,1.91095,2616.5,2616.3,2.2923]
[1723313124249,1.91088,2616.6,2616.3,2.2923]
[1723313124457,1.91095,2616.5,2616.3,2.2923]
[1723313124687,1.91102,2616.4,2615.5,2.2923]
[1723313124864,1.91102,2616.4,2615.7,1.91152]
[1723313125050,1.91102,2616.4,2615.8,0.246152]
[1723313125257,1.91071,2616.9,2616.0,2.2923]
[1723313125459,1.91074,2616.8,2616.0,2.2923]
[1723313125732,2.4177,2617.2,2616.0,2.2923]
[1723313125733,1.91098,2616.5,2616.0,2.2923]
[1723313125888,1.89098,2616.5,2616.0,2.2923]
[1723313126053,1.91102,2616.4,2616.0,2.2923]
[1723313126259,1.91095,2616.5,2616.0,2.2923]
[1723313126650,1.91102,2616.4,2616.0,2.2923]
[1723313127166,0.51523,2616.9,2615.2,3.69]
[1723313127167,1.91112,2616.3,2615.7,2.2923]
[1723313127373,1.91129,2616.1,2615.7,2.2923]
[1723313127578,2.293531,2616.1,2615.7,2.2923]
[1723313127775,1.91132,2616.0,2615.7,2.2923]
[1723313128096,0.382241,2616.1,2615.7,2.2923]
[1723313128255,1.91119,2616.2,2615.7,2.2923]
[1723313129065,1.91125,2616.1,2615.7,2.2923]
[1723313130627,1.91132,2616.0,2615.7,2.2923]
[1723313131138,1.91139,2615.9,2615.1,2.495]
[1723313131335,1.91153,2615.7,2615.1,2.495]
[1723313131488,1.91154,2615.7,2615.1,2.495]
[1723313131817,0.08301312,2615.6,2615.1,2.495]
[1723313132391,1.91146,2615.8,2615.1,2.495]
[1723313132594,0.08330589,2615.7,2615.1,2.495]
[1723313132901,1.91183,2615.3,2615.1,2.495]
[1723313133322,0.08258536,2615.2,2614.6,2.495]
[1723313133519,0.08258536,2615.2,2614.6,5.039304]
[1723313133692,1.91183,2615.3,2614.6,5.039304]
[1723313134093,7.34682,2615.9,2614.6,5.039304]
[1723313134094,1.91199,2615.1,2614.6,2.495]
[1723313134823,0.08225073,2615.0,2614.6,2.495]
[1723313134993,1.91219,2614.8,2614.1,2.495]
[1723313135193,1.91219,2614.8,2614.1,3.670775]
[1723313135194,1.91227,2614.7,2614.1,3.670775]
[1723313135400,0.08040595,2614.6,2614.1,4.40769]
[1723313135616,0.08040595,2614.6,2614.2,1.91262]
[1723313135922,1.91197,2615.1,2614.4,1.91247]
[1723313136123,0.08026066,2614.5,2614.4,1.91247]
[1723313136294,1.91197,2615.1,2614.5,1.91239]
[1723313136493,1.91197,2615.1,2614.5,2.30253339]
[1723313137196,1.9122,2614.8,2614.1,2.495]
[1723313137398,1.91231,2614.7,2614.1,2.495]
[1723313137589,1.91226,2614.7,2614.1,2.495]
[1723313137788,1.91234,2614.6,2614.1,2.495]
[1723313138021,1.91226,2614.7,2614.1,2.495]
[1723313138185,1.91233,2614.6,2614.1,2.495]
[1723313138389,1.91223,2614.8,2614.1,2.495]
[1723313138600,1.91227,2614.7,2614.1,2.495]
[1723313139334,1.91219,2614.8,2614.1,2.495]
[1723313139629,1.91219,2614.8,2614.2,1.91262]
[1723313139935,1.91227,2614.7,2614.1,2.495]
[1723313140293,1.91219,2614.8,2614.1,2.495]
[1723313140493,1.91219,2614.8,2614.1,4.4077]
[1723313140799,1.91219,2614.8,2614.1,2.495]
[1723313141004,1.91219,2614.8,2614.1,4.40769]
[1723313141201,1.91226,2614.7,2614.1,2.495]
[1723313141621,1.91219,2614.8,2614.1,2.495]
[1723313142320,1.91219,2614.8,2614.1,4.40769]
[1723313142524,3.0,2614.9,2614.4,1.91248]
[1723313142824,1.91225,2614.8,2614.1,5.039685]
[1723313143524,1.91225,2614.8,2614.1,3.127045]
[1723313143723,1.91233,2614.6,2614.1,2.495]
[1723313144715,1.91253,2614.4,2614.1,2.495]
[1723313145924,1.91256,2614.3,2614.1,2.495]
[1723313146098,1.91256,2614.3,2613.8,2.495]
[1723313146701,1.91263,2614.2,2613.8,2.495]
[1723313147224,1.91263,2614.2,2613.6,9.26304]
[1723313147225,1.91278,2614.0,2613.5,0.02587053]
[1723313147808,1.91297,2613.8,2613.5,0.02587053]
[1723313148015,0.07935256,2613.9,2613.5,0.02587053]
[1723313148209,0.07913012,2613.7,2613.5,0.02587053]
[1723313148414,1.91285,2613.9,2613.5,0.02587053]
[1723313148610,0.08042398,2613.6,2613.5,0.02587053]
[1723313148818,1.91285,2613.9,2613.5,0.02587053]
[1723313149132,0.07904796,2613.6,2613.5,0.02587053]
[1723313149336,1.91307,2613.6,2613.5,0.02587053]
[1723313149636,1.99211796,2613.6,2613.5,0.02587053]
[1723313150298,3.90518796,2613.6,2613.5,0.02587053]
[1723313150812,6.90518796,2613.6,2613.5,0.02587053]
[1723313151018,8.08700176,2613.6,2613.5,0.02587053]
[1723313154628,12.34347176,2613.6,2613.5,0.02587053]
[1723313155305,14.25654176,2613.6,2613.5,0.02587053]
[1723313157009,12.34347176,2613.6,2613.5,0.02587053]
[1723313158014,14.80654176,2613.6,2613.5,5.3e-07]
[1723313159508,10.43040176,2613.6,2613.5,5.3e-07]
[1723313159746,10.00007176,2613.6,2613.5,5.3e-07]
[1723313160322,7.00007176,2613.6,2613.5,5.3e-07]
[1723313160848,0.07904796,2613.6,2613.5,5.3e-07]
[1723313161055,0.07904796,2613.6,2613.5,2.28300053]
[1723313161345,0.07589239,2613.6,2613.5,2.28300053]
[1723313161850,1.91266,2614.2,2613.5,4.19609053]
[1723313161851,3.82535,2614.2,2613.5,4.19609053]
[1723313162045,0.07079773,2613.6,2613.5,2.90157685]
[1723313162344,3.69,2614.5,2613.5,2.28300053]
[1723313162345,1.91298,2613.8,2613.5,2.28300053]
[1723313162745,0.07036649,2613.7,2613.5,2.28300053]
[1723313162911,1.98336649,2613.7,2613.5,2.28300053]
[1723313163112,1.91289,2613.9,2613.5,2.28300053]
[1723313163330,0.07113522,2613.6,2613.5,2.28300053]
[1723313163541,1.9128,2614.0,2613.5,2.28300053]
[1723313163542,3.82563,2614.0,2613.5,2.28300053]
[1723313163744,0.07112567,2613.6,2613.5,2.28300053]
[1723313164050,0.07112567,2613.6,2613.5,4.61576058]
[1723313164215,1.91266,2614.2,2613.5,4.61576058]
[1723313164419,0.07168162,2614.1,2613.5,4.61576058]
[1723313164643,0.07168162,2614.1,2613.6,1.91305]
[1723313164942,11.12476,2614.6,2613.9,4.19584]
[1723313165142,7.3,2614.6,2614.1,1.91268]
[1723313165348,0.07221132,2614.5,2614.1,0.61084]
[1723313165725,0.07221132,2614.5,2614.2,1.91258]
[1723313166050,0.07221132,2614.5,2614.3,2.283]
[1723313166244,1.91219,2614.8,2614.3,2.283]
[1723313166445,1.91219,2614.8,2613.9,2.283]
[1723313166446,1.91245,2614.5,2613.9,2.283]
[1723313166649,1.91262,2614.3,2613.9,2.283]
[1723313166847,1.98431052,2614.4,2613.9,2.283]
[1723313167249,0.0715382,2614.2,2613.9,2.283]
[1723313167456,0.07164936,2614.3,2613.9,2.283]
[1723313167634,0.07164936,2614.3,2614.0,1.91275]
[1723313167952,4.91237,2614.6,2613.9,2.283]
[1723313167953,0.07156725,2614.2,2613.9,2.283]
[1723313168265,1.91256,2614.3,2613.9,2.283]
[1723313168429,1.91241,2614.5,2613.9,2.283]
[1723313168628,1.91253,2614.4,2613.9,2.702591]
[1723313168932,0.07164936,2614.3,2613.9,2.702591]
[1723313169130,1.91241,2614.5,2613.9,2.702591]
[1723313169535,1.98424052,2614.4,2613.9,2.702591]
[1723313169727,1.91256,2614.3,2613.9,2.702591]
[1723313169952,1.98420936,2614.3,2613.9,2.702591]
[1723313170921,0.07164936,2614.3,2614.0,0.2702591]
[1723313171235,11.12462,2614.7,2614.0,0.2702591]
[1723313171236,9.2123,2614.7,2614.1,2.4215]
[1723313171634,1.91214,2614.9,2614.2,1.91257]
[1723313171845,10.3,2615.0,2614.1,2.4215]
[1723313171846,1.91238,2614.6,2614.1,2.4215]
[1723313172227,1.91241,2614.5,2614.1,2.4215]
[1723313172428,1.98423389,2614.5,2614.1,2.4215]
[1723313173274,1.98423389,2614.5,2613.8,1.91287]
[1723313173275,1.91285,2613.9,2613.8,2.4215]
[1723313173733,1.98400685,2613.9,2613.8,2.4215]
[1723313173922,0.07115685,2613.9,2613.8,2.4215]
[1723313174127,1.91271,2614.1,2613.8,2.4215]
[1723313174351,0.07115685,2613.9,2613.8,2.4215]
[1723313174526,1.91243,2614.5,2613.8,2.4215]
[1723313174527,1.91243,2614.5,2613.8,4.76787]
[1723313174729,0.07115685,2613.9,2613.8,2.4215]
[1723313175647,1.91282,2614.0,2613.8,2.4215]
[1723313175927,1.98400685,2613.9,2613.5,2.42150053]
[1723313176130,1.91292,2613.8,2613.5,2.42150053]
[1723313176639,1.91292,2613.8,2613.5,5.3e-07]
[1723313176640,1.98393443,2613.7,2613.5,5.3e-07]
[1723313176841,1.91307,2613.6,2613.5,5.3e-07]
[1723313177153,0.07082321,2613.6,2613.5,5.3e-07]
[1723313179144,4.39534553,2613.6,2613.5,5.3e-07]
[1723313179450,3.89696321,2613.6,2613.5,5.3e-07]
[1723313179658,6.89696321,2613.6,2613.5,5.3e-07]
[1723313181259,4.98389321,2613.6,2613.5,5.3e-07]
[1723313181464,3.07082321,2613.6,2613.5,5.3e-07]
[1723313182633,0.07082321,2613.6,2613.5,5.3e-07]
[1723313183131,0.07064167,2613.6,2613.5,5.3e-07]
[1723313183349,1.91294,2613.8,2613.5,5.3e-07]
[1723313183550,0.07050784,2613.6,2613.5,5.3e-07]
[1723313183739,4.91294,2613.8,2613.5,5.3e-07]
[1723313183945,0.07050784,2613.6,2613.5,5.3e-07]
[1723313184140,4.91294,2613.8,2613.5,5.3e-07]
[1723313184328,0.07050784,2613.6,2613.5,5.3e-07]
[1723313184533,4.91294,2613.8,2613.5,5.3e-07]
[1723313184745,0.07050784,2613.6,2613.5,5.3e-07]
[1723313184947,1.913,2613.7,2613.5,5.3e-07]
[1723313185146,0.07050784,2613.6,2613.5,5.3e-07]
[1723313185560,11.1255,2614.1,2613.5,5.3e-07]
[1723313185799,0.07053174,2613.6,2613.5,5.3e-07]
[1723313185963,11.1255,2614.1,2613.5,0.43346958]
[1723313186156,11.1255,2614.1,2613.5,5.3e-07]
[1723313186157,0.07059575,2613.6,2613.5,5.3e-07]
[1723313186358,1.91277,2614.0,2613.5,5.3e-07]
[1723313186558,0.07059575,2613.6,2613.5,5.3e-07]
[1723313186765,4.91277,2614.0,2613.5,5.3e-07]
[1723313186971,0.07059575,2613.6,2613.5,5.3e-07]
[1723313187270,4.91277,2614.0,2613.5,5.3e-07]
[1723313187865,0.07100111,2613.9,2613.5,5.3e-07]
[1723313188250,1.91304,2613.7,2613.5,5.3e-07]
[1723313188652,0.07066746,2613.6,2613.5,5.3e-07]
[1723313189050,1.98373746,2613.6,2613.5,5.3e-07]
[1723313189252,6.82614,2613.6,2613.5,5.3e-07]
[1723313189436,3.89694509,2613.6,2613.5,5.3e-07]
[1723313189635,7.5866396,2613.6,2613.5,5.3e-07]
[1723313189836,1.91326,2613.4,2613.0,2.37150053]
[1723313190137,1.91341,2613.2,2613.0,2.37150053]
[1723313190555,0.0701179,2613.1,2613.0,2.37150053]
[1723313190748,0.0701179,2613.1,2612.5,1.91386]
[1723313192343,0.0701179,2613.1,2612.6,1.9138]
[1723313192750,0.0701179,2613.1,2612.7,2.4686]
[1723313193340,1.9835579,2613.1,2612.7,2.4686]
[1723313194139,1.91352,2613.0,2612.7,2.4686]
[1723313194384,1.91352,2613.0,2612.3,2.4686]
[1723313194385,1.91359,2612.9,2612.3,2.4686]
[1723313194787,0.06978409,2612.8,2612.3,2.4686]
[1723313194994,1.98343409,2612.8,2612.3,2.4686]
[1723313195775,1.98343409,2612.8,2612.3,4.38262]
[1723313195776,0.06978409,2612.8,2612.3,4.38262]
[1723313197455,1.98348409,2612.8,2612.3,2.4686]
[1723313197650,1.91374,2612.7,2612.3,2.4686]
[1723313198183,0.06980059,2612.6,2612.3,2.4686]
[1723313198551,1.91388,2612.5,2612.3,2.4686]
[1723313198754,0.06971837,2612.5,2612.3,2.4686]
[1723313199377,1.91374,2612.7,2612.3,2.4686]
[1723313199574,0.06989399,2612.4,2612.3,2.4686]
[1723313199775,2.296475,2612.7,2612.3,2.4686]
[1723313200279,1.91374,2612.7,2612.3,2.4686]
[1723313200488,0.07011656,2612.6,2612.3,2.4686]
[1723313202474,1.98392656,2612.6,2612.0,1.91418]
[1723313203188,1.91393,2612.5,2611.8,4.38292]
[1723313203359,1.98362534,2612.5,2611.8,4.821215]
[1723313203557,1.98362534,2612.5,2611.9,1.9143]
[1723313203761,1.98357534,2612.5,2611.9,1.9143]
[1723313203960,1.98357534,2612.5,2611.9,2.5878515]
[1723313204201,1.98357534,2612.5,2611.9,0.6735515]
[1723313204509,1.91395,2612.4,2611.8,4.821215]
[1723313204738,1.98353405,2612.4,2611.8,6.735555]
[1723313205314,1.98353405,2612.4,2611.8,4.821215]
[1723313206339,1.98353405,2612.4,2611.8,6.735545]
[1723313206634,1.98353405,2612.4,2611.9,0.6735545]
[1723313206935,0.06958405,2612.4,2611.9,2.5878545]
[1723313207232,3.82767,2612.6,2612.0,1.91422]
[1723313207441,0.06947191,2612.3,2612.2,1.91404]
[1723313207747,1.91369,2612.8,2612.2,4.38264]
[1723313208029,0.06942409,2612.3,2612.2,2.4686]
[1723313208393,1.91384,2612.6,2612.0,1.91423]
[1723313208567,0.06942493,2612.3,2611.9,2.4686]
[1723313208842,1.914,2612.4,2611.9,2.4686]
[1723313209032,0.06929259,2612.2,2611.9,2.4686]
[1723313209339,0.06918127,2612.1,2611.9,2.4686]
[1723313209540,1.91387,2612.5,2611.9,2.4686]
[1723313209738,1.91387,2612.5,2611.9,5.012629]
[1723313209739,0.06906994,2612.0,2611.9,5.012629]
[1723313209942,1.91394,2612.4,2611.9,4.3829]
[1723313210146,0.06909902,2612.0,2611.9,4.3829]
[1723313210719,3.8278,2612.5,2611.9,4.3829]
[1723313211050,0.06902212,2612.0,2611.9,4.3829]
[1723313211251,3.8278,2612.5,2611.9,4.3829]
[1723313211422,0.06906994,2612.0,2611.9,4.3829]
[1723313212045,1.91387,2612.5,2611.9,4.3829]
[1723313212433,3.8278,2612.5,2611.9,4.3829]
[1723313212640,0.06906994,2612.0,2611.9,4.3829]
[1723313212840,1.91387,2612.5,2611.9,4.3829]
[1723313213374,0.06951521,2612.4,2611.9,4.3829]
[1723313214221,0.06951521,2612.4,2612.0,1.91423]
[1723313214424,0.06951521,2612.4,2612.1,1.91415]
[1723313214627,0.06951521,2612.4,2611.9,4.82114]
[1723313214829,1.91388,2612.5,2611.9,4.82114]
[1723313215149,0.0694039,2612.3,2611.9,4.38285]
[1723313215341,3.8278,2612.5,2611.9,4.38285]
[1723313215654,0.06932167,2612.2,2611.9,4.38285]
[1723313215951,0.06921035,2612.1,2611.9,4.38285]
[1723313216250,1.91388,2612.5,2611.9,4.38285]
[1723313216451,0.06881206,2612.0,2611.9,5.012577]
[1723313216620,1.91388,2612.5,2611.9,5.012577]
[1723313216820,0.06881206,2612.0,2611.9,4.38285]
[1723313217320,1.91388,2612.5,2611.9,4.38285]
[1723313217519,0.06925736,2612.4,2611.9,4.38285]
[1723313219253,0.06925736,2612.4,2612.0,1.91417]
[1723313219456,9.21376,2612.7,2612.1,1.91412]
[1723313219667,0.06911738,2612.3,2612.0,4.458062]
[1723313219829,9.21376,2612.7,2612.1,1.91414]
[1723313220031,1.98315606,2612.2,2611.6,1.91446]
[1723313220358,0.06888708,2612.1,2611.6,1.91446]
[1723313223059,1.91425,2612.0,2611.4,1.91463]
[1723313223261,2.11256371,2612.0,2611.4,1.91463]
[1723313223434,0.06856841,2611.9,2611.4,1.91463]
[1723313225433,0.06856841,2611.9,2611.5,1.9146]
[1723313226166,1.91422,2612.1,2611.5,1.9146]
[1723313226462,0.06845705,2611.8,2611.5,1.9146]
[1723313226765,0.06834569,2611.7,2611.5,1.9146]
[1723313226966,2.838628,2612.1,2611.5,1.9146]
[1723313227164,0.06823431,2611.6,2611.4,1.91463]
[1723313227367,2.838628,2612.1,2611.4,1.91463]
[1723313227566,0.06812293,2611.5,2611.4,1.91463]
[1723313227735,2.4981528,2612.0,2611.4,1.91463]
[1723313228065,0.06812293,2611.5,2611.4,1.91463]
[1723313228374,0.06812293,2611.5,2611.3,1.91471]
[1723313228533,4.33016,2611.9,2611.3,1.91471]
[1723313228729,0.06801154,2611.4,2611.3,1.91471]
[1723313228935,5.01298128,2611.9,2611.3,1.91471]
[1723313229146,0.06801154,2611.4,2611.0,6.10586]
[1723313229349,1.91451,2611.7,2611.0,4.19093]
[1723313229547,0.06790014,2611.3,2611.0,4.19093]
[1723313229758,1.91451,2611.7,2611.0,5.454583]
[1723313229946,0.0676874,2611.2,2611.0,4.19093]
[1723313230159,1.91451,2611.7,2611.1,1.91484]
[1723313230463,0.06760508,2611.1,2611.0,4.19093]
[1723313230662,1.91465,2611.5,2610.8,1.9151]
[1723313230904,9.2145,2611.7,2610.7,2.3864105]
[1723313231049,0.06807905,2611.4,2611.1,1.91483]
[1723313231250,0.06830181,2611.6,2611.1,1.91483]
[1723313232051,1.10640683,2611.6,2611.1,1.91483]
[1723313232245,3.02093683,2611.6,2611.1,1.91483]
[1723313232450,1.10640683,2611.6,2611.1,1.91483]
[1723313234182,1.91461,2611.5,2610.9,1.91503]
[1723313234385,1.98272927,2611.5,2610.9,1.91503]
[1723313234581,3.2062617,2611.5,2610.9,1.91503]
[1723313235465,1.91469,2611.4,2610.9,1.91503]
[1723313235983,0.06790224,2611.3,2610.9,1.91503]
[1723313236182,7.54300243,2611.5,2610.9,1.91503]
[1723313236383,0.06779085,2611.2,2610.7,6.2167005]
[1723313236583,0.75430024,2611.4,2610.8,1.91511]
[1723313236756,0.06767944,2611.1,2610.8,1.91511]
[1723313236960,0.75430024,2611.4,2610.8,1.91511]
[1723313237282,0.06756803,2611.0,2610.8,1.91511]
[1723313237456,0.75430024,2611.4,2610.9,1.91504]
[1723313237649,0.63826427,2611.3,2610.9,1.91504]
[1723313238079,0.06779085,2611.2,2610.9,3.83004]
[1723313238280,0.06779085,2611.2,2611.0,1.91495]
[1723313238479,5.62834243,2611.5,2610.9,1.915]
[1723313239092,0.06801363,2611.4,2610.9,3.82999]
[1723313239383,0.06801363,2611.4,2610.9,1.91499]
[1723313239590,0.63764924,2611.4,2610.9,1.91499]
[1723313243086,0.63764924,2611.4,2610.9,3.82999]
[1723313243275,0.06801363,2611.4,2611.2,1.91476]
[1723313243690,1.91465,2611.5,2610.8,1.9151]
[1723313243888,0.06772605,2611.3,2610.9,1.91499]
[1723313244093,0.06783744,2611.4,2610.9,1.91499]
[1723313244293,0.06761466,2611.2,2610.9,1.91499]
[1723313244593,0.06750325,2611.1,2610.9,1.91499]
[1723313244780,0.19824874,2611.4,2610.9,1.91499]
[1723313245090,0.06739184,2611.0,2610.9,1.91499]
[1723313245294,0.19824874,2611.4,2610.9,1.91499]
[1723313245795,0.06772605,2611.3,2610.9,1.91499]
[1723313246990,0.06772605,2611.3,2611.0,1.91496]
[1723313247190,0.06772605,2611.3,2611.0,1.91491]
[1723313247392,9.21447,2611.7,2611.0,3.82982]
[1723313247557,0.06764374,2611.2,2611.0,3.82982]
[1723313247762,9.21447,2611.7,2611.0,3.82982]
[1723313247958,0.06753234,2611.1,2611.0,3.82982]
[1723313248190,1.28029184,2611.6,2611.0,3.82982]
[1723313248491,0.06753234,2611.1,2611.0,1.91491]
[1723313248692,1.28029184,2611.6,2611.2,1.91481]
[1723313248900,1.04947618,2611.5,2611.2,1.91481]
[1723313249391,1.04947618,2611.5,2611.0,1.91491]
[1723313249963,1.04947618,2611.5,2611.1,1.91485]
[1723313250392,1.04947618,2611.5,2611.2,1.91482]
[1723313251787,2.20447618,2611.5,2611.2,1.91482]
[1723313252996,0.06755009,2611.4,2611.2,1.91482]
[1723313253969,0.4227819,2611.4,2610.8,1.9151]
[1723313254386,4.7262019,2611.4,2610.8,1.9151]
[1723313254585,1.155,2611.3,2610.8,1.9151]
[1723313254793,1.2224387,2611.3,2610.8,1.9151]
[1723313254993,4.02170737,2611.3,2610.8,1.9151]
[1723313255201,2.10695737,2611.3,2610.8,1.9151]
[1723313256002,2.10695737,2611.3,2610.8,3.83018]
[1723313256297,2.10695737,2611.3,2610.9,1.91503]
[1723313258608,2.10695737,2611.3,2610.8,1.91508]
[1723313259107,2.10695737,2611.3,2610.8,3.83015]
[1723313259906,2.10695737,2611.3,2610.9,1.91504]
[1723313260203,2.10695737,2611.3,2610.8,1.91507]
[1723313260782,1.91415,2612.2,2611.5,1.91456]
[1723313260982,1.155,2613.1,2612.1,3.6465]
[1723313261307,1.155,2613.1,2612.6,1.91374]
[1723313261524,1.461829,2613.1,2612.6,1.91374]
[1723313261879,1.461829,2613.1,2612.4,1.91391]
[1723313261880,3.375259,2613.1,2612.4,1.91391]
[1723313262276,3.375259,2613.1,2612.5,1.91387]
[1723313262488,1.461829,2613.1,2612.6,1.9138]
[1723313263581,1.461829,2613.1,2612.8,1.91364]
[1723313263807,3.82637,2613.5,2612.8,1.91364]
[1723313263975,1.91316,2613.5,2612.8,1.91364]
[1723313264529,1.91316,2613.5,2612.9,1.91357]
[1723313264674,1.91316,2613.5,2612.8,1.91364]
[1723313264675,3.0,2613.6,2613.0,1.91344]
[1723313264875,4.91311,2613.6,2613.0,1.91344]
[1723313265110,2.834623,2613.5,2612.8,1.91364]
[1723313267415,2.834623,2613.5,2612.8,3.82724]
[1723313268127,2.834623,2613.5,2612.8,1.9136]
[1723313268484,0.04894356,2613.4,2612.8,1.9136]
[1723313270401,0.04894356,2613.4,2613.0,1.9135]
[1723313270795,0.04894356,2613.4,2612.8,1.9136]
[1723313271001,0.04894356,2613.4,2613.0,1.9135]
[1723313272582,0.04894356,2613.4,2612.8,1.9136]
[1723313272583,0.04894356,2613.4,2612.8,3.8272]
[1723313273020,1.91343,2613.1,2612.4,4.24189]
[1723313273189,1.91343,2613.1,2612.4,4.24188]
[1723313273389,0.04708538,2613.0,2612.4,4.24188]
[1723313273689,0.04708538,2613.0,2612.5,1.91382]
[1723313273889,0.04708538,2613.0,2612.5,2.38546373]
[1723313274424,1.91359,2612.9,2612.2,1.91406]
[1723313274601,1.96054107,2612.9,2612.2,1.91406]
[1723313275185,0.04695107,2612.9,2612.1,2.328]
[1723313275521,4.32579,2612.7,2612.1,1.91416]
[1723313275723,4.949728,2612.7,2612.1,1.91416]
[1723313276018,0.04712204,2612.6,2612.1,1.91416]
[1723313280459,1.96092204,2612.6,2612.1,1.91416]
[1723313280783,1.96092204,2612.6,2611.9,1.91426]
[1723313281332,0.04712204,2612.6,2612.1,1.91415]
[1723313281566,0.04712204,2612.6,2611.9,1.91426]
[1723313281866,1.96097204,2612.6,2611.9,2.529928]
[1723313282948,0.04712204,2612.6,2611.9,2.529928]
[1723313283236,0.04712204,2612.6,2612.1,1.91415]
[1723313285981,0.04712204,2612.6,2612.2,1.91404]
[1723313287275,0.04712204,2612.6,2612.3,1.91401]
[1723313287474,0.04712204,2612.6,2612.3,4.24197]
[1723313287675,0.04712204,2612.6,2612.3,5.39497]
[1723313287847,9.21362,2612.9,2612.3,5.39497]
[1723313288048,0.04635753,2612.5,2612.3,5.39497]
[1723313288373,0.04635753,2612.5,2611.9,0.615668]
[1723313288374,0.04624622,2612.4,2611.9,3.682928]
[1723313288581,4.32585,2612.6,2612.0,0.3682928]
[1723313288742,0.04614067,2612.3,2612.0,0.3682928]
[1723313288948,4.32585,2612.6,2612.0,0.3682928]
[1723313289147,0.04636329,2612.5,2611.9,3.682928]
[1723313289370,0.04636329,2612.5,2612.0,1.91423]
[1723313290596,0.04636329,2612.5,2612.4,1.91394]
[1723313290884,1.9125,2614.4,2613.7,1.91293]
[1723313291056,1.91242,2614.5,2613.9,1.91284]
[1723313291253,0.03840637,2614.2,2613.8,3.06592]
[1723313291486,1.91242,2614.5,2613.8,3.06592]
[1723313291797,0.736589,2614.4,2613.8,1.91292]
[1723313292077,0.7757959,2614.4,2613.8,1.91292]
[1723313293478,0.7757959,2614.4,2613.9,1.91283]
[1723313302065,0.7757959,2614.4,2613.3,6.95075]
[1723313302066,2.4977,2614.0,2613.3,4.18577]
[1723313302290,2.4977,2614.0,2613.3,1.91323]
[1723313302489,0.03867234,2613.9,2613.3,1.91323]
[1723313302766,0.03867234,2613.9,2613.5,1.91311]
[1723313303163,0.03867234,2613.9,2613.7,1.91299]
[1723313303363,1.91258,2614.3,2613.7,1.91299]
[1723313303663,0.03879603,2614.2,2613.7,1.91299]
[1723313304321,0.03879603,2614.2,2613.8,1.91287]
[1723313304468,0.03879603,2614.2,2613.9,1.91284]
[1723313304670,2.4977,2614.4,2613.9,1.91284]
[1723313304874,0.03878417,2614.1,2613.9,1.91284]
[1723313305180,0.03867301,2614.0,2613.9,1.91284]
[1723313305391,2.4977,2614.4,2613.9,1.91284]
[1723313305589,0.03867301,2614.0,2613.9,1.91279]
[1723313305781,2.4977,2614.4,2613.9,1.91279]
[1723313305992,3.82479,2614.6,2613.9,1.91279]
[1723313305993,0.03867301,2614.0,2613.9,1.91279]
[1723313306199,3.82478,2614.6,2613.9,1.91279]
[1723313306396,0.03872114,2614.0,2613.9,1.91279]
[1723313306598,12.21239,2614.6,2613.9,1.91279]
[1723313306930,0.03875019,2614.0,2613.9,1.91279]
[1723313307417,12.21239,2614.6,2613.9,1.91279]
[1723313307728,9.21239,2614.6,2614.0,1.91276]
[1723313308034,10.574621,2614.6,2614.0,1.91276]
[1723313308531,2.4977,2615.5,2614.7,1.91219]
[1723313308833,4.40919,2615.8,2615.2,1.91184]
[1723313312430,6.32071,2615.8,2615.2,1.91184]
[1723313312587,6.32071,2615.8,2615.0,1.91201]
[1723313312588,2.543601,2615.7,2615.0,1.91199]
[1723313314407,1.91176,2615.4,2614.8,1.91218]
[1723313314612,2.3262,2615.3,2614.4,2.3677]
[1723313314808,1.91206,2615.0,2614.2,1.91257]
[1723313315027,1.91202,2615.1,2614.2,1.91257]
[1723313315028,1.912,2615.1,2614.2,1.91257]
[1723313315336,1.91216,2614.9,2614.2,1.91257]
[1723313315536,1.91216,2614.9,2614.3,1.91255]
[1723313316840,1.91228,2614.7,2614.1,2.3677]
[1723313317398,1.91228,2614.7,2614.1,4.28037]
[1723313317601,1.91215,2614.9,2614.1,4.28037]
[1723313317602,1.91215,2614.9,2614.3,1.91254]
[1723313317902,1.91215,2614.9,2614.2,2.340607]
[1723313318214,1.91221,2614.8,2614.2,2.340607]
[1723313318613,1.91215,2614.9,2614.1,2.3677]
[1723313318614,1.91231,2614.7,2614.1,2.3677]
[1723313319015,1.91234,2614.6,2614.1,2.3677]
[1723313321125,1.91243,2614.5,2614.1,2.3677]
[1723313321337,1.91243,2614.5,2613.8,2.4818]
[1723313321338,1.91261,2614.3,2613.8,2.4818]
[1723313322534,1.91264,2614.2,2613.8,2.4818]
[1723313322730,1.91261,2614.3,2613.8,2.4818]
[1723313322924,1.91244,2614.5,2613.8,4.39465]
[1723313323925,3.82491,2614.5,2613.8,4.39465]
[1723313324421,1.9126,2614.3,2613.6,3.82604]
[1723313324614,1.9126,2614.3,2613.6,1.91301]
[1723313325419,1.9126,2614.3,2613.6,3.82603]
[1723313326431,1.9126,2614.3,2613.7,1.91297]
[1723313326708,1.91242,2614.5,2613.8,1.91289]
[1723313326908,1.91242,2614.5,2613.9,2.4818]
[1723313327108,1.91242,2614.5,2613.9,4.39464]
[1723313327412,1.9123,2614.7,2614.0,1.91274]